bitfinex-derivatives/quotes_ETHF0:USTF0_20240818
["timestamp","ask_amount","ask_price","bid_price","bid_amount"]
[1723975222605,1.8872,2649.1,2648.5,3.2078]
[1723975222798,1.8872,2649.1,2648.5,5.09538]
[1723975222997,2.11461024,2649.2,2648.5,3.2078]
[1723975222998,4.00174024,2649.2,2648.5,3.2078]
[1723975223295,1.88716,2649.1,2648.5,5.09535]
[1723975223905,1.88721,2649.1,2648.5,3.2078]
[1723975224298,1.88721,2649.1,2648.5,5.09538]
[1723975225007,3.69561292,2649.2,2648.8,3.2078]
[1723975225197,3.69561292,2649.2,2648.9,1.6065]
[1723975225400,2.07281292,2649.2,2648.9,1.6065]
[1723975226011,0.00917703,2649.3,2648.9,1.6065]
[1723975226507,0.50684012,2649.3,2648.9,1.6065]
[1723975226708,0.20021822,2649.3,2648.9,1.6065]
[1723975226908,0.20021822,2649.3,2649.0,40.8]
[1723975230011,0.00917703,2649.3,2649.0,42.5151]
[1723975231113,0.00917703,2649.3,2649.0,46.2895]
[1723975231615,0.00917703,2649.3,2649.2,3.2078]
[1723975232008,0.00917703,2649.3,2649.2,6.9822]
[1723975232209,0.00917703,2649.3,2649.2,47.7822]
[1723975239416,0.00917703,2649.3,2649.2,49.66929]
[1723975239716,0.00917703,2649.3,2649.2,47.7822]
[1723975243751,1.89619703,2649.3,2649.2,47.7822]
[1723975243917,1.89619703,2649.3,2649.2,44.0078]
[1723975246920,0.00917703,2649.3,2649.2,47.7822]
[1723975247313,0.00917703,2649.3,2649.2,44.0078]
[1723975247512,0.00917703,2649.3,2649.2,47.7822]
[1723975247731,0.00917703,2649.3,2649.2,44.0078]
[1723975248224,1.89619703,2649.3,2649.2,44.0078]
[1723975251233,0.00917703,2649.3,2649.2,44.0078]
[1723975251730,1.89619703,2649.3,2649.2,44.0078]
[1723975252731,0.00917703,2649.3,2649.2,44.0078]
[1723975261439,0.00917703,2649.3,2649.2,45.89489]
[1723975261628,0.3131863,2649.7,2649.2,47.7822]
[1723975261836,1.88677,2649.7,2649.2,45.89486]
[1723975262037,1.88673,2649.7,2649.2,44.0078]
[1723975262638,0.00836013,2649.7,2649.2,45.89487]
[1723975262834,1.89510013,2649.7,2649.2,45.89487]
[1723975263243,0.00836013,2649.7,2649.2,45.89487]
[1723975263438,1.89512013,2649.7,2649.2,44.0078]
[1723975263643,1.89509013,2649.7,2649.2,44.0078]
[1723975264635,1.88682,2649.6,2649.2,44.0078]
[1723975264955,1.89514013,2649.7,2649.2,44.0078]
[1723975265145,1.88681,2649.6,2649.2,44.0078]
[1723975265338,1.89512013,2649.7,2649.2,44.0078]
[1723975265533,0.00836013,2649.7,2649.2,45.89485]
[1723975265736,0.00836013,2649.7,2649.5,3.2078]
[1723975274446,0.00836013,2649.7,2649.2,44.0078]
[1723975274447,3.78276013,2649.7,2649.2,44.0078]
[1723975274647,1.88702,2649.3,2649.2,44.0078]
[1723975275040,5.66142,2649.3,2648.6,3.2078]
[1723975275253,1.88727,2649.0,2648.6,1.6988]
[1723975275446,1.8874,2648.8,2648.6,1.6988]
[1723975275642,1.88747,2648.7,2648.3,3.2078]
[1723975275836,1.88749,2648.7,2648.3,3.2078]
[1723975276042,1.88749,2648.7,2648.4,40.8]
[1723975276246,1.88759,2648.5,2648.4,40.8]
[1723975276547,1.88756,2648.6,2648.2,1.7033385]
[1723975276847,1.8222,2648.5,2648.2,1.7033385]
[1723975277049,3.70984,2648.5,2648.2,0.0045385]
[1723975277252,1.88766,2648.4,2648.2,0.0045385]
[1723975277440,0.18984522,2648.4,2648.3,40.8]
[1723975277636,1.8222,2648.5,2648.3,40.8]
[1723975278650,1.88748,2648.7,2648.3,40.8]
[1723975278838,1.88753,2648.6,2648.3,40.8]
[1723975279045,0.37096096,2648.7,2648.3,40.8]
[1723975279341,1.88766,2648.4,2648.3,40.8]
[1723975279538,0.19218573,2648.4,2648.2,0.0045385]
[1723975279754,1.88769,2648.4,2648.2,0.0045385]
[1723975279940,2.07903454,2648.4,2648.2,0.0045385]
[1723975280543,0.19134454,2648.4,2648.3,40.8]
[1723975280744,1.88754,2648.6,2648.3,40.8]
[1723975280941,1.88762,2648.5,2648.3,40.8]
[1723975281460,1.88766,2648.4,2648.3,40.8]
[1723975281654,2.07975995,2648.4,2648.3,40.8]
[1723975281847,5.85575995,2648.4,2648.3,40.8]
[1723975282870,10.85575995,2648.4,2648.3,40.1]
[1723975283055,5.85575995,2648.4,2648.3,40.1]
[1723975284052,0.19209995,2648.4,2648.3,40.1]
[1723975284355,0.37872086,2648.6,2648.3,40.1]
[1723975284652,1.88755,2648.6,2648.3,40.1]
[1723975285650,1.88759,2648.5,2648.3,40.1]
[1723975285846,1.88756,2648.6,2648.3,40.1]
[1723975286359,2.20328048,2648.7,2648.3,40.1]
[1723975286561,1.88756,2648.6,2648.3,40.1]
[1723975287160,1.88759,2648.5,2648.3,40.1]
[1723975287659,1.88766,2648.4,2648.3,40.1]
[1723975287861,2.07243944,2648.4,2648.3,40.1]
[1723975288061,5.84843944,2648.4,2648.3,40.1]
[1723975289365,0.18477944,2648.4,2648.3,40.1]
[1723975289664,3.2078,2648.5,2648.3,40.1]
[1723975289856,5.0954,2648.5,2648.3,40.1]
[1723975291061,5.09543,2648.5,2648.3,40.1]
[1723975291367,1.88766,2648.4,2648.3,40.1]
[1723975291567,2.07837021,2648.4,2648.3,40.1]
[1723975293753,5.85437021,2648.4,2648.3,40.1]
[1723975294462,5.85437021,2648.4,2648.2,0.0045385]
[1723975294463,1.88773,2648.3,2648.2,0.0045385]
[1723975295157,1.8878,2648.2,2648.1,0.00566487]
[1723975295662,0.19071021,2648.4,2648.1,40.80566487]
[1723975295869,1.8878,2648.2,2648.1,40.80566487]
[1723975296055,1.88777,2648.3,2648.1,40.80566487]
[1723975296251,1.88777,2648.3,2648.1,40.80991341]
[1723975296767,2.07369387,2648.3,2648.1,40.80991341]
[1723975297159,0.18592387,2648.3,2648.1,40.80991341]
[1723975297356,1.88766,2648.4,2648.1,40.80991341]
[1723975297657,2.07541591,2648.4,2648.1,40.80991341]
[1723975298058,0.18775591,2648.4,2648.1,40.80991341]
[1723975298269,1.88766,2648.4,2648.1,40.80991341]
[1723975298466,2.07464155,2648.4,2648.1,40.80991341]
[1723975299261,1.88777,2648.3,2648.1,40.80991341]
[1723975299868,1.88771,2648.4,2648.1,40.80991341]
[1723975300561,0.18636461,2648.4,2648.1,40.80991341]
[1723975300868,3.58887897,2648.5,2648.1,40.80991341]
[1723975301767,5.47646897,2648.5,2648.1,40.80991341]
[1723975303360,3.2078,2649.4,2648.7,1.88742]
[1723975303565,1.7457,2649.6,2648.7,3.2078]
[1723975303768,2.07770773,2649.8,2649.0,3.2078]
[1723975303769,0.19102773,2649.8,2649.0,3.2078]
[1723975303979,1.88683,2649.6,2649.1,40.8]
[1723975304576,1.88687,2649.5,2649.1,40.8]
[1723975304776,1.88688,2649.5,2649.1,40.8]
[1723975305470,1.88704,2649.3,2649.1,40.8]
[1723975306172,1.88699,2649.4,2649.1,40.8]
[1723975307378,1.8869,2649.5,2649.1,40.8]
[1723975308079,0.00836013,2649.7,2649.1,44.5744]
[1723975308274,1.88692,2649.5,2649.1,40.8]
[1723975308579,1.88702,2649.3,2649.1,40.8]
[1723975308873,1.88709,2649.2,2649.1,40.8]
[1723975311475,1.88704,2649.3,2649.1,40.8]
[1723975312271,1.88709,2649.2,2649.1,40.8]
[1723975312669,1.88706,2649.3,2649.1,44.5744]
[1723975312869,1.88709,2649.2,2649.1,40.8]
[1723975313270,1.88705,2649.3,2649.1,44.5744]
[1723975313477,1.88705,2649.3,2649.1,40.8]
[1723975313676,1.88709,2649.2,2649.1,40.8]
[1723975313872,1.88706,2649.3,2649.1,40.8]
[1723975315573,1.88709,2649.2,2649.1,40.8]
[1723975315976,1.88709,2649.2,2649.1,44.5744]
[1723975316272,0.36764412,2649.5,2649.1,44.5744]
[1723975316477,1.88701,2649.4,2649.1,40.8]
[1723975316777,1.88702,2649.3,2649.1,40.8]
[1723975316981,5.09466,2649.6,2649.1,40.8]
[1723975317172,1.88708,2649.3,2649.1,40.8]
[1723975318377,3.58509821,2649.6,2649.1,40.8]
[1723975318687,1.88693,2649.5,2649.1,40.8]
[1723975319476,1.88688,2649.5,2649.1,40.8]
[1723975320084,5.47194821,2649.6,2649.1,40.8]
[1723975320274,1.88688,2649.5,2649.1,40.8]
[1723975320475,5.47195821,2649.6,2649.1,40.8]
[1723975321078,1.88691,2649.5,2649.1,40.8]
[1723975321585,5.47193821,2649.6,2649.1,40.8]
[1723975321974,1.88688,2649.5,2649.1,40.8]
[1723975322177,5.47194821,2649.6,2649.1,40.8]
[1723975322879,1.88688,2649.5,2649.1,40.8]
[1723975323281,5.47194821,2649.6,2649.1,40.8]
[1723975323892,1.88709,2649.2,2649.1,40.8]
[1723975324090,1.88723,2649.0,2648.8,3.379]
[1723975324388,1.88724,2649.0,2648.8,3.379]
[1723975324578,1.7598,2649.2,2648.8,3.379]
[1723975324774,4.9676,2649.2,2648.8,3.379]
[1723975325089,1.8873,2648.9,2648.8,3.379]
[1723975325491,1.8873,2648.9,2648.8,1.6735]
[1723975326189,1.8873,2648.9,2648.8,42.4735]
[1723975326391,1.7598,2649.2,2648.8,42.4735]
[1723975326392,1.88727,2649.0,2648.8,42.4735]
[1723975326586,1.88727,2649.0,2648.8,1.6735]
[1723975328086,5.33522285,2649.2,2648.8,1.6735]
[1723975328389,1.8873,2648.9,2648.8,1.6735]
[1723975328797,2.12742285,2649.2,2648.8,1.6735]
[1723975328985,1.8873,2648.9,2648.8,1.6735]
[1723975329286,1.88744,2648.7,2648.6,40.8]
[1723975329491,1.88744,2648.7,2648.5,1.6885]
[1723975329687,3.2078,2648.8,2648.1,3.21771341]
[1723975329991,1.88763,2648.5,2648.1,0.00991341]
[1723975330187,0.19244858,2648.4,2648.1,0.00991341]
[1723975330380,1.88763,2648.5,2648.1,0.00991341]
[1723975330593,1.88764,2648.5,2648.1,0.00991341]
[1723975331093,1.7179,2648.6,2648.1,0.00991341]
[1723975331386,1.88761,2648.5,2648.1,0.00991341]
[1723975331592,1.88747,2648.7,2648.2,1.88778]
[1723975331787,1.88752,2648.6,2648.3,1.7233]
[1723975331989,1.7921,2648.9,2648.3,1.7233]
[1723975331990,1.88759,2648.5,2648.3,1.7233]
[1723975332191,1.88756,2648.6,2648.3,42.5233]
[1723975332393,1.88756,2648.6,2648.4,1.8178]
[1723975332689,1.88757,2648.6,2648.4,1.8178]
[1723975332890,3.2078,2648.7,2648.4,1.8178]
[1723975333090,1.88759,2648.5,2648.4,1.8178]
[1723975333493,3.2078,2648.7,2648.4,1.8178]
[1723975333494,1.88756,2648.6,2648.4,1.8178]
[1723975333693,5.09527,2648.7,2648.4,1.8178]
[1723975333888,1.88747,2648.7,2648.4,1.8178]
[1723975334993,1.88752,2648.6,2648.4,1.8178]
[1723975335188,5.09532,2648.6,2648.4,1.8178]
[1723975336092,1.88752,2648.6,2648.4,1.8178]
[1723975336792,1.88748,2648.7,2648.4,1.8178]
[1723975337697,1.88752,2648.6,2648.4,1.8178]
[1723975337883,1.88748,2648.7,2648.4,1.8178]
[1723975338284,3.2078,2648.6,2648.4,1.8178]
[1723975338494,5.09532,2648.6,2648.4,1.8178]
[1723975339497,1.88766,2648.4,2648.3,40.8]
[1723975339798,2.07607061,2648.4,2648.3,40.8]
[1723975340000,0.18841061,2648.4,2648.3,40.8]
[1723975340196,1.88762,2648.5,2648.3,40.8]
[1723975340397,1.88766,2648.4,2648.3,40.8]
[1723975340601,0.19262801,2648.4,2648.3,40.8]
[1723975340793,1.88763,2648.5,2648.3,40.8]
[1723975345710,3.57716579,2648.6,2648.3,40.8]
[1723975345711,1.88766,2648.4,2648.3,40.8]
[1723975345907,2.07996696,2648.4,2648.3,40.8]
[1723975348107,5.28776696,2648.4,2648.3,40.8]
[1723975349103,2.07996696,2648.4,2648.3,40.8]
[1723975349306,5.28776696,2648.4,2648.3,40.8]
[1723975350600,1.88705,2649.3,2648.6,1.88749]
[1723975350801,1.88714,2649.2,2648.9,3.2078]
[1723975351104,1.88714,2649.2,2648.4,3.65472]
[1723975351105,3.2078,2649.4,2648.5,3.2078]
[1723975351308,3.71767,2649.1,2648.5,3.2078]
[1723975351505,1.88739,2648.8,2648.5,3.2078]
[1723975352005,3.5692,2649.0,2648.5,3.2078]
[1723975352194,1.88735,2648.9,2648.5,3.2078]
[1723975352804,5.45645,2649.0,2648.5,3.2078]
[1723975353107,5.45645,2649.0,2648.6,1.826]
[1723975353695,1.88731,2648.9,2648.6,1.826]
[1723975355707,1.8873,2648.9,2648.6,1.826]
[1723975356309,2.25058076,2648.9,2648.6,1.826]
[1723975356520,0.36328076,2648.9,2648.6,1.826]
[1723975356808,3.58033,2649.0,2648.6,1.826]
[1723975358106,1.6931,2649.0,2648.6,1.826]
[1723975358509,2.0632455,2649.0,2648.6,1.826]
[1723975359307,3.9504855,2649.0,2648.6,1.826]
[1723975359504,0.3701455,2649.0,2648.6,1.826]
[1723975359701,7.17514,2649.2,2648.8,3.2078]
[1723975359904,5.288,2649.2,2648.8,3.2078]
[1723975360101,7.17514,2649.2,2648.8,3.2078]
[1723975361602,7.54257176,2649.2,2648.9,3.2078]
[1723975361799,5.65543176,2649.2,2648.9,3.2078]
[1723975362001,7.54252176,2649.2,2648.9,3.2078]
[1723975362908,5.65543176,2649.2,2648.9,3.2078]
[1723975366004,7.54253176,2649.2,2648.9,3.2078]
[1723975367206,7.54255176,2649.2,2648.9,3.2078]
[1723975368009,5.65543176,2649.2,2648.9,3.2078]
[1723975369010,7.54253176,2649.2,2648.9,3.2078]
[1723975369307,5.65543176,2649.2,2648.9,3.2078]
[1723975374417,7.54255176,2649.2,2648.9,3.2078]
[1723975374714,7.54255176,2649.2,2648.6,5.0338]
[1723975375614,5.65543176,2649.2,2648.6,5.0338]
[1723975376416,5.65543176,2649.2,2648.6,6.92129]
[1723975376810,5.65543176,2649.2,2648.9,3.2078]
[1723975378107,0.00836013,2649.7,2649.0,3.544]
[1723975378307,1.8869,2649.5,2649.3,3.2078]
[1723975378722,1.8869,2649.5,2649.4,40.8]
[1723975379113,1.5083,2649.5,2649.4,40.8]
[1723975379314,0.00836013,2649.7,2649.4,44.5744]
[1723975379511,0.36790333,2649.7,2649.6,3.2078]
[1723975379709,0.00836013,2649.7,2649.6,3.2078]
[1723975380305,0.19673161,2649.7,2649.6,44.0078]
[1723975380511,0.00836013,2649.7,2649.6,44.0078]
[1723975381114,0.19323906,2649.7,2649.6,44.0078]
[1723975381920,0.19323906,2649.7,2649.6,47.7822]
[1723975383216,0.55212714,2649.7,2649.6,47.7822]
[1723975383419,0.55212714,2649.7,2649.6,52.7822]
[1723975383420,0.00836013,2649.7,2649.6,52.7822]
[1723975383725,0.00836013,2649.7,2649.6,47.7822]
[1723975384320,0.00836013,2649.7,2649.6,52.7822]
[1723975384722,0.00836013,2649.7,2649.6,47.7822]
[1723975385218,0.00836013,2649.7,2649.6,52.7822]
[1723975385621,0.00836013,2649.7,2649.6,47.7822]
[1723975387128,0.00836013,2649.7,2649.6,51.3609]
[1723975387429,5.287,2650.1,2649.6,56.3609]
[1723975387730,5.47112458,2650.1,2649.9,3.2078]
[1723975388425,7.36079061,2650.1,2649.9,3.2078]
[1723975388928,7.36076061,2650.1,2649.9,3.2078]
[1723975389415,5.47431061,2650.1,2649.9,3.2078]
[1723975390329,5.83534569,2650.1,2649.9,3.2078]
[1723975392529,5.83534569,2650.1,2650.0,1.7476]
[1723975392736,0.54834569,2650.1,2650.0,1.75043533]
[1723975392920,0.18731061,2650.1,2650.0,5.52403533]
[1723975393321,0.00566487,2650.3,2650.0,10.52403533]
[1723975393516,1.8521,2650.8,2650.3,1.88628]
[1723975393728,1.8521,2650.8,2650.5,3.2078]
[1723975394036,1.8521,2650.8,2650.6,1.8491]
[1723975394230,2.04135009,2650.8,2650.6,44.4123]
[1723975394415,2.04455328,2650.8,2650.6,44.4123]
[1723975394816,2.40515576,2650.8,2650.6,44.4123]
[1723975396231,0.19245328,2650.8,2650.6,44.4123]
[1723975401630,0.19245328,2650.8,2650.6,1.7632]
[1723975401934,1.88609,2650.6,2650.1,4.9889]
[1723975402125,1.88633,2650.3,2650.1,3.2078]
[1723975402327,1.88638,2650.2,2650.0,40.80283533]
[1723975402833,1.7034,2650.5,2650.0,40.80283533]
[1723975402834,1.88645,2650.1,2650.0,40.80283533]
[1723975403835,3.7729,2650.1,2650.0,0.00283533]
[1723975404642,1.88645,2650.1,2650.0,0.00283533]
[1723975407143,4.9112,2650.5,2650.0,3.77643533]
[1723975407432,1.88614,2650.6,2650.2,5.09417]
[1723975407644,0.55676748,2650.8,2650.5,3.2078]
[1723975407941,1.88602,2650.7,2650.5,3.2078]
[1723975408138,2.07320662,2650.6,2650.5,3.2078]
[1723975408335,1.88609,2650.6,2650.5,3.2078]
[1723975408839,2.07845358,2650.6,2650.5,3.2078]
[1723975411041,2.07845358,2650.6,2650.0,1.80673533]
[1723975411042,1.88638,2650.2,2650.1,3.2078]
[1723975411338,1.88645,2650.1,2650.0,0.00283533]
[1723975411530,3.67475,2650.1,2650.0,0.00283533]
[1723975412333,1.7883,2650.1,2650.0,0.00283533]
[1723975412642,1.88634,2650.3,2650.0,3.77643533]
[1723975412838,1.88634,2650.3,2650.1,5.0003]
[1723975413037,0.19236358,2650.6,2650.1,6.8581]
[1723975413340,4.9447,2650.7,2650.1,6.8581]
[1723975413341,1.88624,2650.4,2650.1,6.8581]
[1723975413544,0.19056874,2650.3,2650.1,6.8581]
[1723975414137,2.09457898,2650.7,2650.2,3.7736]
[1723975414338,0.00320319,2650.8,2650.2,1.88633]
[1723975414545,0.00320319,2650.8,2650.7,3.2078]
[1723975416142,0.00320319,2650.8,2650.7,6.9806]
[1723975417343,0.00320319,2650.8,2650.7,8.8597]
[1723975418231,0.00320319,2650.8,2650.7,49.6597]
[1723975418830,0.00320319,2650.8,2650.7,51.54572]
[1723975419037,0.00320319,2650.8,2650.7,49.6597]
[1723975419240,0.00566487,2651.0,2650.7,54.6597]
[1723975419442,0.00566487,2651.0,2650.8,5.65791]
[1723975419743,0.00566487,2651.0,2650.9,1.88588]
[1723975420041,0.00566487,2651.0,2650.9,5.65788]
[1723975420244,0.00908283,2651.0,2650.9,8.772]
[1723975420543,0.00908283,2651.0,2650.9,49.572]
[1723975421134,0.18438059,2653.1,2650.9,49.572]
[1723975421135,3.2078,2652.3,2650.9,49.572]
[1723975421338,1.88505,2652.1,2651.8,3.2078]
[1723975421642,1.88509,2652.1,2651.8,3.2078]
[1723975421942,1.88514,2652.0,2651.8,3.2078]
[1723975422131,0.00354707,2652.0,2651.8,3.2078]
[1723975422447,1.88864707,2652.0,2651.8,3.2078]
[1723975422745,0.00354707,2652.0,2651.8,3.2078]
[1723975423943,0.00354707,2652.0,2651.9,3.7712]
[1723975424143,0.00354707,2652.0,2651.9,3.77570889]
[1723975424446,0.00354707,2652.0,2651.9,5.64150889]
[1723975424740,0.00354707,2652.0,2651.9,46.44150889]
[1723975425149,0.00354707,2652.0,2651.9,42.67030889]
[1723975425440,5.65984707,2652.0,2651.9,0.00450889]
[1723975426034,0.00354707,2652.0,2651.9,0.00450889]
[1723975427140,0.00354707,2652.0,2651.9,3.77570889]
[1723975428143,5.65983707,2652.0,2651.9,0.00450889]
[1723975428949,10.75273707,2652.0,2651.9,0.00450889]
[1723975429774,5.09643707,2652.0,2651.9,0.00450889]
[1723975430138,8.86763707,2652.0,2651.9,0.00450889]
[1723975430740,10.75272707,2652.0,2651.9,0.00450889]
[1723975433142,8.86763707,2652.0,2651.9,0.00450889]
[1723975436841,0.00354707,2652.0,2651.9,0.00450889]
[1723975437139,1.88864707,2652.0,2651.9,0.00450889]
[1723975437945,0.00354707,2652.0,2651.9,0.00450889]
[1723975438179,1.88864707,2652.0,2651.9,0.00450889]
[1723975438749,5.65984707,2652.0,2651.9,0.00450889]
[1723975438941,8.86764707,2652.0,2651.9,0.00450889]
[1723975439854,7.54494707,2652.0,2651.9,0.00450889]
[1723975440057,10.75274707,2652.0,2651.9,0.00450889]
[1723975440457,12.54494707,2652.0,2651.9,0.00450889]
[1723975440756,15.75274707,2652.0,2651.9,0.00450889]
[1723975440968,5.65984707,2652.0,2651.9,0.00450889]
[1723975442549,3.77474707,2652.0,2651.9,0.00450889]
[1723975443454,0.00354707,2652.0,2651.9,0.00450889]
[1723975445362,0.00354707,2652.0,2651.9,3.21230889]
[1723975448656,0.00354707,2652.0,2651.9,6.98350889]
[1723975448851,0.19081405,2653.0,2652.0,3.7704]
[1723975449056,1.88467,2652.6,2652.1,1.755]
[1723975449356,1.88491,2652.3,2652.1,1.755]
[1723975449570,1.88502,2652.1,2652.0,1.7096]
[1723975449752,1.88892533,2652.1,2652.0,1.7096]
[1723975450653,0.00390533,2652.1,2652.0,1.7096]
[1723975451157,1.88455,2652.8,2652.0,5.48]
[1723975451360,3.76749,2652.9,2652.2,3.2078]
[1723975451556,1.883,2652.9,2652.3,3.5838]
[1723975451859,0.18677223,2652.9,2652.5,3.2078]
[1723975452165,0.00455607,2652.9,2652.8,3.2078]
[1723975452361,0.19481743,2652.9,2652.8,44.0078]
[1723975452561,0.00455607,2652.9,2652.8,44.0078]
[1723975453161,0.19683547,2652.9,2652.8,44.0078]
[1723975453463,0.00455607,2652.9,2652.8,44.0078]
[1723975454254,0.00455607,2652.9,2652.8,47.7774]
[1723975456262,0.00455607,2652.9,2652.8,44.0078]
[1723975456758,0.00455607,2652.9,2652.8,47.7774]
[1723975456958,1.88421,2653.3,2652.8,47.7774]
[1723975457165,1.88414,2653.4,2652.8,45.89232]
[1723975457365,1.88414,2653.4,2652.9,3.5622]
[1723975457867,1.88835349,2653.4,2653.0,1.8386]
[1723975459065,0.00420349,2653.4,2653.1,3.2078]
[1723975459365,1.88379,2653.9,2653.1,6.9766]
[1723975459565,1.7585,2654.0,2653.4,3.2078]
[1723975459870,1.7585,2654.0,2653.5,1.7027]
[1723975460167,1.7585,2654.0,2652.9,3.2078]
[1723975460168,1.88434,2653.1,2652.9,3.2078]
[1723975460367,0.0048061,2653.1,2652.9,3.2078]
[1723975460682,1.8891561,2653.1,2652.9,3.2078]
[1723975460858,0.0048061,2653.1,2652.9,3.2078]
[1723975461470,1.8891661,2653.1,2652.9,44.0078]
[1723975461658,0.0048061,2653.1,2652.9,44.0078]
[1723975461862,0.0048061,2653.1,2653.0,1.7027]
[1723975462459,0.0048061,2653.1,2653.0,3.4817]
[1723975463971,1.88376,2653.9,2653.0,53.0513]
[1723975464269,1.88382,2653.8,2653.7,3.2078]
[1723975464464,1.88379,2653.9,2653.7,3.2078]
[1723975464658,1.88382,2653.8,2653.7,3.2078]
[1723975465067,1.88728272,2653.8,2653.7,3.2078]
[1723975465459,1.88728272,2653.8,2653.4,40.8]
[1723975465460,1.88728272,2653.8,2653.4,44.0078]
[1723975465879,1.88403,2653.5,2653.4,44.0078]
[1723975466260,1.88398,2653.6,2653.4,44.0078]
[1723975466663,1.88403,2653.5,2653.4,44.0078]
[1723975466869,1.88403,2653.5,2653.4,3.2078]
[1723975467063,5.65283,2653.5,2653.4,3.2078]
[1723975467261,12.53686,2653.5,2653.4,3.2078]
[1723975467565,1.88434,2653.1,2653.0,3.2078]
[1723975467867,1.88428,2653.2,2653.0,3.2078]
[1723975468468,1.8842,2653.3,2653.0,3.2078]
[1723975468695,1.886,2653.4,2653.0,6.7682]
[1723975469062,1.88417,2653.3,2653.0,6.7682]
[1723975469473,3.77014,2653.4,2653.0,6.7682]
[1723975469664,1.88417,2653.3,2653.0,6.7682]
[1723975469968,4.12432668,2653.4,2653.0,6.7682]
[1723975470163,3.77014,2653.4,2653.0,6.7682]
[1723975470359,1.88418,2653.3,2653.0,6.7682]
[1723975470869,1.886,2653.4,2653.0,6.7682]
[1723975471271,1.88426,2653.2,2653.0,6.7682]
[1723975471966,1.88426,2653.2,2653.0,5.0508]
[1723975472166,2.24779637,2653.4,2653.0,5.0508]
[1723975472368,1.8843,2653.2,2653.0,5.0508]
[1723975472864,1.88423,2653.3,2653.0,5.0508]
[1723975473777,2.24779637,2653.4,2653.0,5.0508]
[1723975473980,1.88427,2653.2,2653.0,5.0508]
[1723975474168,2.24779637,2653.4,2653.0,5.0508]
[1723975474169,1.88422,2653.3,2653.0,5.0508]
[1723975474473,1.88425,2653.2,2653.0,5.0508]
[1723975475571,1.88421,2653.3,2653.0,5.0508]
[1723975475877,1.88424,2653.2,2653.0,5.0508]
[1723975476085,1.88425,2653.2,2653.0,5.0508]
[1723975476267,1.88419,2653.3,2653.0,5.0508]
[1723975476582,3.77016,2653.4,2653.0,5.0508]
[1723975476793,3.77016,2653.4,2653.1,1.7868]
[1723975476969,1.886,2653.4,2653.1,1.7868]
[1723975477174,1.88424,2653.3,2653.1,1.7868]
[1723975477865,2.24308819,2653.4,2653.1,1.7868]
[1723975478071,1.88418,2653.3,2653.1,1.7868]
[1723975478271,0.35708819,2653.4,2653.1,1.7868]
[1723975478465,0.00346272,2653.8,2653.3,3.2078]
[1723975478466,0.35198391,2653.8,2653.3,3.2078]
[1723975478771,0.00346272,2653.8,2653.6,3.2078]
[1723975478966,0.00346272,2653.8,2653.7,5.3793]
[1723975479580,0.00346272,2653.8,2653.6,3.2078]
[1723975479581,5.84600988,2653.8,2653.6,3.2078]
[1723975479881,0.19418988,2653.8,2653.6,3.2078]
[1723975480080,0.19418988,2653.8,2653.7,1.8833]
[1723975480371,2.07800988,2653.8,2653.7,1.8833]
[1723975480571,1.88389,2653.7,2653.6,3.2078]
[1723975480973,3.94884988,2653.8,2653.6,3.2078]
[1723975481170,1.88389,2653.7,2653.6,3.2078]
[1723975481380,7.46229,2653.7,2653.6,3.2078]
[1723975481573,5.5784,2653.7,2653.1,5.0911]
[1723975481876,1.88406,2653.5,2653.1,5.0911]
[1723975482276,1.88405,2653.5,2653.1,5.0911]
[1723975482683,1.8842,2653.3,2653.1,5.0911]
[1723975482982,1.88406,2653.5,2653.1,5.0911]
[1723975483167,1.884,2653.6,2653.1,5.0911]
[1723975483365,1.88395,2653.7,2653.1,5.0911]
[1723975483571,2.07802988,2653.8,2653.4,3.2078]
[1723975483874,2.07802988,2653.8,2653.5,1.7813]
[1723975483875,0.19418988,2653.8,2653.5,1.7813]
[1723975484086,0.19418988,2653.8,2653.5,3.5098]
[1723975484278,2.07800988,2653.8,2653.6,1.7131]
[1723975484794,2.07804988,2653.8,2653.6,1.7131]
[1723975485281,0.19418988,2653.8,2653.6,1.7131]
[1723975486482,2.07800988,2653.8,2653.6,1.7131]
[1723975486985,0.19418988,2653.8,2653.6,1.7131]
[1723975491284,2.07800988,2653.8,2653.6,1.7131]
[1723975491481,0.19418988,2653.8,2653.6,1.7131]
[1723975493184,2.07801988,2653.8,2653.6,1.7131]
[1723975493686,2.07801988,2653.8,2653.5,3.2078]
[1723975493687,0.19418988,2653.8,2653.5,3.2078]
[1723975493982,1.88396,2653.7,2653.2,5.312]
[1723975494284,1.88394,2653.7,2653.2,5.312]
[1723975494584,1.88396,2653.6,2653.2,5.312]
[1723975495379,1.88396,2653.6,2653.5,3.2078]
[1723975495588,0.19418988,2653.8,2653.2,8.5198]
[1723975495589,1.88404,2653.5,2653.2,8.5198]
[1723975495887,1.88417,2653.3,2653.2,3.4955]
[1723975496481,0.19418988,2653.8,2653.2,3.4955]
[1723975496684,1.88416,2653.4,2653.2,3.4955]
[1723975497190,1.88417,2653.3,2653.2,3.4955]
[1723975497618,1.88396,2653.6,2653.2,3.4955]
[1723975497619,1.88415,2653.4,2653.2,3.4955]
[1723975498472,0.34713794,2653.6,2653.2,3.4955]
[1723975498684,1.8844,2653.7,2653.2,6.7033]
[1723975498881,1.88396,2653.6,2653.2,6.7033]
[1723975499094,1.88404,2653.5,2653.2,6.7033]
[1723975499790,1.88411,2653.4,2653.2,6.7033]
[1723975499992,1.88408,2653.5,2653.2,6.7033]
[1723975500693,1.88417,2653.3,2653.2,4.9456]
[1723975501072,2.24551707,2653.7,2653.2,4.9456]
[1723975501278,1.88404,2653.5,2653.2,4.9456]
[1723975501881,0.36111707,2653.7,2653.2,4.9456]
[1723975502087,1.88389,2653.7,2653.2,4.9456]